fUST/lending_fUST_20250106
["ID","MTS","AMOUNT","RATE_DAILY","PERIOD"]
[347822171,1736134241501,-500.0,0.00021223,3]
[347822172,1736134241510,-500.0,0.00021223,3]
[347822173,1736134241519,-500.0,0.00021223,3]
[347822174,1736134241530,-1813.94,0.00021223,3]
[347822175,1736134241539,-500.0,0.00021224,3]
[347822176,1736134241548,-1285.71,0.00021224,3]
[347822177,1736134241558,-505.98767399,0.00021224,3]
[347822178,1736134241567,-500.0,0.00021224,3]
[347822179,1736134241576,-500.0,0.00021224,3]
[347822180,1736134241585,-447.67266635,0.00021224,3]
[347822181,1736134241595,-500.0,0.00021224,3]
[347822182,1736134241604,-500.0,0.00021224,3]
[347822183,1736134241614,-500.0,0.00021224,3]
[347822184,1736134241623,-500.0,0.00021224,3]
[347822185,1736134241634,-500.0,0.00021226,3]
[347822186,1736134241648,-500.0,0.00021226,3]
[347822187,1736134241658,-500.0,0.00021226,3]
[347822188,1736134241667,-3718.86,0.00021226,3]
[347822189,1736134241676,-154.73891222,0.00021233,2]
[347822190,1736134241686,-595.92,0.00021272,3]
[347822191,1736134241696,-500.0,0.00021273,2]
[347822192,1736134241706,-500.0,0.00021273,2]
[347822193,1736134241715,-500.0,0.00021273,3]
[347822194,1736134241725,-500.0,0.00021273,3]
[347822195,1736134241734,-500.0,0.00021273,3]
[347822196,1736134241744,-500.0,0.00021273,3]
[347822197,1736134241753,-510.69217213,0.00021273,3]
[347822198,1736134241762,-500.0,0.00021273,3]
[347822199,1736134241771,-506.80005364,0.00021273,3]
[347822200,1736134241780,-500.0,0.00021273,3]
[347822201,1736134241790,-500.0,0.00021273,3]
[347822202,1736134241799,-500.0,0.00021273,3]
[347822203,1736134241808,-639.84848969,0.00021273,3]
[347822204,1736134241819,-154.73891222,0.00021344,2]
[347822205,1736134241828,-2404.0,0.00021413,2]
[347822206,1736134241837,-4357.2,0.00021427,3]
[347822207,1736134241846,-154.73891222,0.00021456,2]
[347822208,1736134241855,-500.0,0.00021473,2]
[347822209,1736134241864,-500.0,0.00021494,3]
[347822210,1736134241874,-500.0,0.00021494,3]
[347822211,1736134241883,-16919.55,0.00021494,2]
[347822212,1736134241892,-500.0,0.00021494,3]
[347822213,1736134241901,-500.0,0.00021495,3]
[347822214,1736134241910,-3785.05,0.00021495,3]
[347822215,1736134241919,-2057.21,0.00021495,3]
[347822216,1736134242004,-1095.51,0.00021495,3]
[347822217,1736134242014,-507.94,0.00021495,3]
[347822218,1736134242023,-500.0,0.00021495,3]
[347822219,1736134242033,-500.0,0.00021495,3]
[347822220,1736134242042,-366.06503222,0.00021495,3]
[347822221,1736134242052,-500.0,0.00021495,3]
[347822222,1736134242061,-500.0,0.00021495,3]
[347822223,1736134242071,-500.0,0.00021495,3]
[347822224,1736134242080,-1217.57,0.00021495,3]
[347822225,1736134242089,-1341.59,0.00021495,3]
[347822226,1736134242098,-500.0,0.00021495,3]
[347822227,1736134242107,-412.57725443,0.00021495,3]
[347822228,1736134242115,-500.0,0.00021495,3]
[347822229,1736134242124,-500.0,0.00021495,3]
[347822230,1736134242133,-500.0,0.00021495,3]
[347822231,1736134242143,-500.0,0.00021495,3]
[347822232,1736134242151,-534.58,0.00021495,3]
[347822233,1736134242160,-676.82,0.00021495,3]
[347822234,1736134242169,-500.0,0.00021495,3]
[347822235,1736134242179,-500.0,0.00021495,3]
[347822236,1736134242189,-500.0,0.00021495,3]
[347822237,1736134242199,-500.0,0.00021495,3]
[347822238,1736134242208,-519.33405288,0.00021496,3]
[347822239,1736134242218,-500.0,0.00021496,3]
[347822240,1736134242227,-500.0,0.00021496,3]
[347822241,1736134242240,-500.0,0.00021496,3]
[347822242,1736134242250,-500.0,0.00021496,3]
[347822243,1736134242259,-500.0,0.00021496,3]
[347822244,1736134242268,-500.0,0.00021496,3]
[347822245,1736134242278,-500.0,0.00021496,3]
[347822246,1736134242287,-500.0,0.00021496,3]
[347822247,1736134242296,-500.0,0.00021496,3]
[347822248,1736134242305,-500.0,0.00021496,3]
[347822249,1736134242314,-500.0,0.00021496,3]
[347822250,1736134242324,-500.0,0.00021496,3]
[347822251,1736134242333,-500.0,0.00021496,3]
[347822252,1736134242342,-500.0,0.00021496,3]
[347822253,1736134242351,-500.0,0.00021496,3]
[347822254,1736134242360,-500.0,0.00021496,3]
[347822255,1736134242370,-500.0,0.00021496,3]
[347822256,1736134242379,-500.0,0.00021496,3]
[347822257,1736134242388,-508.04231466,0.00021496,3]
[347822258,1736134242398,-500.0,0.00021496,3]
[347822259,1736134242407,-500.0,0.00021496,3]
[347822260,1736134242417,-500.0,0.00021496,3]
[347822261,1736134242426,-511.69868012,0.00021496,3]
[347822262,1736134242436,-500.0,0.00021496,3]
[347822263,1736134242446,-500.0,0.00021496,3]
[347822264,1736134242456,-500.0,0.00021496,3]
[347822265,1736134242465,-500.0,0.00021496,3]
[347822266,1736134242474,-506.50683241,0.00021496,3]
[347822267,1736134242483,-510.404801,0.00021496,3]
[347822268,1736134242492,-506.78179424,0.00021496,3]
[347822269,1736134242501,-511.34879887,0.00021496,3]
[347822270,1736134242511,-506.93361763,0.00021496,3]
[347822271,1736134242520,-504.8942378,0.00021496,3]
[347822272,1736134242529,-568.82961761,0.00021496,3]
[347822273,1736134242539,-500.0,0.00021496,3]
[347822274,1736134242548,-510.8518014,0.00021496,3]
[347822275,1736134242557,-507.48983888,0.00021496,3]
[347822276,1736134242567,-505.79688702,0.00021496,3]
[347822277,1736134242576,-500.0,0.00021496,3]
[347822278,1736134242585,-500.0,0.00021496,3]
[347822279,1736134242595,-500.0,0.00021496,3]
[347822280,1736134242604,-500.0,0.00021496,3]
[347822281,1736134242613,-518.23,0.00021496,3]
[347822282,1736134242623,-500.0,0.00021496,3]
[347822283,1736134242633,-500.0,0.00021496,3]
[347822285,1736134242646,-500.0,0.00021496,3]
[347822286,1736134242655,-500.0,0.00021496,3]
[347822287,1736134242665,-500.0,0.00021496,3]
[347822288,1736134242674,-500.0,0.00021496,3]
[347822289,1736134242685,-500.0,0.00021496,3]
[347822290,1736134242695,-517.06737675,0.00021496,3]
[347822291,1736134242705,-500.0,0.00021496,3]
[347822292,1736134242715,-500.0,0.00021496,3]
[347822293,1736134242725,-500.0,0.00021496,3]
[347822294,1736134242735,-16209.91,0.00021496,3]
[347822295,1736134242744,-510.01755214,0.00021496,3]
[347822296,1736134242754,-500.0,0.00021496,3]
[347822297,1736134242764,-500.0,0.00021496,3]
[347822298,1736134242773,-500.0,0.00021496,3]
[347822300,1736134242782,-508.89810876,0.00021496,3]
[347822302,1736134242792,-511.35911109,0.00021496,3]
[347822303,1736134242801,-500.0,0.00021496,3]
[347822304,1736134242811,-500.0,0.00021496,3]
[347822305,1736134242820,-500.0,0.00021496,3]
[347822306,1736134242829,-500.0,0.00021496,3]
[347822307,1736134242838,-604.15126876,0.00021497,3]
[347822308,1736134242847,-369.19167343,0.00021497,3]
[347822309,1736134242857,-264.5,0.00021497,3]
[347822310,1736134242866,-493.96518114,0.00021497,3]
[347822311,1736134242875,-505.52627716,0.00021497,3]
[347822312,1736134242884,-504.60758645,0.00021497,3]
[347822313,1736134242893,-507.37661244,0.00021497,3]
[347822314,1736134242903,-221.59876683,0.00021497,3]
[347822315,1736134242912,-252.11236481,0.00021497,3]
[347822317,1736134242921,-500.0,0.00021497,3]
[347822319,1736134242931,-500.0,0.00021497,3]
[347822321,1736134242940,-500.0,0.00021497,3]
[347822323,1736134242950,-500.0,0.00021497,3]
[347822325,1736134242959,-500.0,0.00021497,3]
[347822326,1736134242968,-517.57304786,0.00021497,3]
[347822327,1736134242977,-500.0,0.00021497,3]
[347822328,1736134242987,-372.14079847,0.00021497,3]
[347822329,1736134242996,-500.0,0.00021497,3]
[347822330,1736134243005,-500.0,0.00021497,3]
[347822331,1736134243014,-1813.94,0.00021497,3]
[347822332,1736134243024,-500.0,0.00021498,3]
[347822333,1736134243033,-1285.71,0.00021498,3]
[347822334,1736134243042,-500.0,0.00021498,3]
[347822335,1736134243051,-500.0,0.00021498,3]
[347822336,1736134243060,-500.0,0.00021498,3]
[347822337,1736134243070,-500.0,0.00021498,3]
[347822338,1736134243079,-500.0,0.00021498,3]
[347822339,1736134243088,-500.0,0.00021498,3]
[347822340,1736134243097,-500.0,0.000215,3]
[347822341,1736134243107,-500.0,0.000215,3]
[347822342,1736134243116,-487.75870461,0.000215,2]
[347822343,1736134243125,-3718.86,0.000215,3]
[347822344,1736134243135,-299.55108189,0.00021547,3]
[347822345,1736134243144,-228.98536945,0.00021547,3]
[347822346,1736134243154,-500.0,0.00021547,3]
[347822347,1736134243163,-500.0,0.00021547,3]
[347822348,1736134243172,-500.0,0.00021547,3]
[347822349,1736134243183,-500.0,0.00021547,3]
[347822350,1736134243192,-500.0,0.00021547,3]
[347822351,1736134243202,-500.0,0.00021547,3]
[347822352,1736134243211,-154.73891222,0.00021567,2]
[347822353,1736134243220,-154.73891222,0.00021678,2]
[347822354,1736134243230,-500.0,0.00021768,3]
[347822355,1736134243239,-500.0,0.00021768,3]
[347822356,1736134243248,-16919.55,0.00021768,2]
[347822357,1736134243257,-500.0,0.00021768,3]
[347822358,1736134243266,-500.0,0.00021769,3]
[347822359,1736134243276,-3785.05,0.00021769,3]
[347822360,1736134243285,-2057.21,0.00021769,3]
[347822361,1736134243295,-1095.51,0.00021769,3]
[347822362,1736134243304,-507.94,0.00021769,3]
[347822363,1736134243314,-500.0,0.00021769,3]
[347822364,1736134243323,-500.0,0.00021769,3]
[347822365,1736134243332,-500.0,0.00021769,3]
[347822366,1736134243342,-500.0,0.00021769,3]
[347822367,1736134243351,-500.0,0.00021769,3]
[347822368,1736134243361,-1217.57,0.00021769,3]
[347822369,1736134243370,-1341.59,0.00021769,3]
[347822370,1736134243380,-500.0,0.00021769,3]
[347822371,1736134243389,-500.0,0.00021769,3]
[347822372,1736134243399,-500.0,0.00021769,3]
[347822373,1736134243408,-483.2310717,0.00021769,3]
[347822374,1736134243417,-500.0,0.00021769,3]
[347822375,1736134243426,-534.58,0.00021769,3]
[347822376,1736134243439,-676.82,0.00021769,3]
[347822377,1736134243449,-500.0,0.00021769,3]
[347822378,1736134243459,-500.0,0.00021769,3]
[347822379,1736134243468,-500.0,0.00021769,3]
[347822380,1736134243477,-500.0,0.00021769,3]
[347822381,1736134243487,-500.0,0.0002177,3]
[347822382,1736134243496,-500.0,0.0002177,3]
[347822383,1736134243506,-588.93295218,0.0002177,3]
[347822384,1736134243516,-500.0,0.0002177,3]
[347822385,1736134243525,-500.0,0.0002177,3]
[347822386,1736134243534,-500.0,0.0002177,3]
[347822387,1736134243543,-500.0,0.0002177,3]
[347822388,1736134243553,-500.0,0.0002177,3]
[347822389,1736134243562,-500.0,0.0002177,3]
[347822390,1736134243571,-506.82339489,0.0002177,3]
[347822391,1736134243581,-500.0,0.0002177,3]
[347822392,1736134243591,-500.0,0.0002177,3]
[347822393,1736134243600,-500.0,0.0002177,3]
[347822394,1736134243609,-500.0,0.0002177,3]
[347822395,1736134243619,-500.0,0.0002177,3]
[347822396,1736134243629,-500.0,0.0002177,3]
[347822397,1736134243639,-500.0,0.0002177,3]
[347822398,1736134243649,-500.0,0.0002177,3]
[347822399,1736134243658,-516.0355685,0.0002177,3]
[347822400,1736134243667,-522.40952679,0.0002177,3]
[347822401,1736134243676,-500.0,0.0002177,3]
[347822402,1736134243687,-500.0,0.0002177,3]
[347822403,1736134243697,-168.23750554,0.0002177,3]
[347822404,1736134243706,-500.0,0.0002177,3]
[347822405,1736134243716,-500.0,0.0002177,3]
[347822406,1736134243725,-500.0,0.0002177,3]
[347822407,1736134243736,-500.0,0.0002177,3]
[347822408,1736134243745,-500.0,0.0002177,3]
[347822409,1736134243755,-500.0,0.0002177,3]
[347822410,1736134243764,-590.02139542,0.0002177,3]
[347822411,1736134243773,-518.23,0.0002177,3]
[347822412,1736134243783,-500.0,0.0002177,3]
[347822413,1736134243792,-500.0,0.0002177,3]
[347822414,1736134243801,-500.0,0.0002177,3]
[347822415,1736134243811,-500.0,0.0002177,3]
[347822416,1736134243820,-643.33415849,0.0002177,3]
[347822417,1736134243830,-500.0,0.0002177,3]
[347822418,1736134243839,-500.0,0.0002177,3]
[347822419,1736134243848,-500.0,0.0002177,3]
[347822420,1736134243858,-500.0,0.0002177,3]
[347822421,1736134243867,-500.0,0.0002177,3]
[347822422,1736134243950,-16209.91,0.0002177,3]
[347822423,1736134243960,-500.0,0.0002177,3]
[347822424,1736134243970,-500.0,0.0002177,3]
[347822425,1736134243979,-500.0,0.0002177,3]
[347822426,1736134243988,-507.43400812,0.0002177,3]
[347822427,1736134243998,-500.0,0.0002177,3]
[347822428,1736134244007,-500.0,0.0002177,3]
[347822429,1736134244016,-500.0,0.0002177,3]
[347822430,1736134244026,-500.0,0.00021771,3]
[347822431,1736134244035,-500.0,0.00021771,3]
[347822432,1736134244044,-500.0,0.00021771,3]
[347822433,1736134244053,-500.0,0.00021771,3]
[347822434,1736134244062,-500.0,0.00021771,3]
[347822435,1736134244071,-500.0,0.00021771,3]
[347822436,1736134244080,-500.0,0.00021771,3]
[347822437,1736134244089,-500.0,0.00021771,3]
[347822438,1736134244098,-1813.94,0.00021771,3]
[347822439,1736134244107,-500.0,0.00021772,3]
[347822440,1736134244116,-1285.71,0.00021772,3]
[347822441,1736134244125,-204.30371457,0.00021772,3]
[347822442,1736134244135,-500.0,0.00021772,3]
[347822443,1736134244144,-211.87969433,0.00021772,3]
[347822444,1736134244154,-500.0,0.00021772,3]
[347822445,1736134244163,-500.0,0.00021772,3]
[347822446,1736134244173,-500.0,0.00021772,3]
[347822447,1736134244183,-500.0,0.00021774,3]
[347822448,1736134244192,-500.0,0.00021774,3]
[347822449,1736134244202,-3718.86,0.00021774,3]
[347822450,1736134244211,-154.73891222,0.00021789,2]
[347822451,1736134244220,-471.09608609,0.00021821,2]
[347822452,1736134244230,-1000.0,0.00021821,2]
[347822453,1736134244241,-519.90590983,0.00021821,3]
[347822454,1736134244250,-500.0,0.00021821,3]
[347822455,1736134244260,-500.0,0.00021821,3]
[347822456,1736134244269,-513.37016959,0.00021821,3]
[347822457,1736134244278,-500.0,0.00021821,3]
[347822458,1736134244287,-500.0,0.00021821,3]
[347822459,1736134244297,-442.036,0.0002183,2]
[347822460,1736134244306,-154.73891222,0.000219,2]
[347822461,1736134244316,-220.0,0.00022,10]
[347822462,1736134244325,-220.0,0.00022,9]
[347822463,1736134244335,-154.73891222,0.00022011,2]
[347822464,1736134244344,-1000.0,0.00022021,2]
[347822465,1736134244353,-500.0,0.00022042,3]
[347822466,1736134244362,-500.0,0.00022042,3]
[347822467,1736134244371,-16919.55,0.00022042,2]
[347822468,1736134244380,-500.0,0.00022042,3]
[347822469,1736134244390,-500.0,0.00022043,3]
[347822470,1736134244399,-3785.05,0.00022043,3]
[347822471,1736134244408,-2057.21,0.00022043,3]
[347822472,1736134244417,-1095.51,0.00022043,3]
[347822473,1736134244426,-507.94,0.00022043,3]
[347822474,1736134244437,-500.0,0.00022043,3]
[347822475,1736134244446,-500.0,0.00022043,3]
[347822476,1736134244455,-500.0,0.00022043,3]
[347822477,1736134244464,-500.0,0.00022043,3]
[347822478,1736134244473,-500.0,0.00022043,3]
[347822479,1736134244483,-1217.57,0.00022043,3]
[347822480,1736134244492,-1341.59,0.00022043,3]
[347822481,1736134244502,-500.0,0.00022043,3]
[347822482,1736134244511,-526.42519894,0.00022043,3]
[347822483,1736134244520,-500.0,0.00022043,3]
[347822484,1736134244529,-500.0,0.00022043,3]
[347822485,1736134244539,-534.58,0.00022043,3]
[347822486,1736134244547,-676.82,0.00022043,3]
[347822487,1736134244555,-500.0,0.00022043,3]
[347822488,1736134244564,-500.0,0.00022043,3]
[347822489,1736134244573,-500.0,0.00022043,3]
[347822490,1736134244584,-500.0,0.00022043,3]
[347822491,1736134244593,-500.0,0.00022044,3]
[347822492,1736134244603,-500.0,0.00022044,3]
[347822493,1736134244612,-500.0,0.00022044,3]
[347822494,1736134244621,-500.0,0.00022044,3]
[347822495,1736134244631,-500.0,0.00022044,3]
[347822496,1736134244642,-500.0,0.00022044,3]
[347822497,1736134244651,-500.0,0.00022044,3]
[347822498,1736134244661,-500.0,0.00022044,3]
[347822499,1736134244671,-500.0,0.00022044,3]
[347822500,1736134244681,-500.0,0.00022044,3]
[347822501,1736134244691,-438.74751629,0.00022044,3]
[347822502,1736134244700,-500.0,0.00022044,3]
[347822503,1736134244710,-500.0,0.00022044,3]
[347822504,1736134244720,-500.0,0.00022044,3]
[347822505,1736134244730,-500.0,0.00022044,3]
[347822506,1736134244739,-500.0,0.00022044,3]
[347822507,1736134244749,-500.0,0.00022044,3]
[347822508,1736134244759,-500.0,0.00022044,3]
[347822509,1736134244768,-500.0,0.00022044,3]
[347822510,1736134244777,-522.87235278,0.00022044,3]
[347822511,1736134244787,-500.0,0.00022044,3]
[347822512,1736134244797,-500.0,0.00022044,3]
[347822513,1736134244806,-500.0,0.00022044,3]
[347822514,1736134244816,-500.0,0.00022044,3]
[347822515,1736134244825,-518.23,0.00022044,3]
[347822516,1736134244835,-500.0,0.00022044,3]
[347822517,1736134244844,-500.0,0.00022044,3]
[347822518,1736134244853,-500.0,0.00022044,3]
[347822519,1736134244863,-500.0,0.00022044,3]
[347822520,1736134244871,-500.0,0.00022044,3]
[347822521,1736134244881,-500.0,0.00022044,3]
[347822522,1736134244890,-500.0,0.00022044,3]
[347822523,1736134244899,-500.0,0.00022044,3]
[347822524,1736134244909,-500.0,0.00022044,3]
[347822525,1736134244919,-16209.91,0.00022044,3]
[347822526,1736134244929,-500.0,0.00022044,3]
[347822527,1736134244939,-500.0,0.00022044,3]
[347822528,1736134244948,-500.0,0.00022044,3]
[347822529,1736134244957,-500.0,0.00022044,3]
[347822530,1736134244967,-500.0,0.00022044,3]
[347822531,1736134244976,-500.0,0.00022044,3]
[347822532,1736134244986,-500.0,0.00022045,3]
[347822533,1736134244995,-151.0,0.00022045,7]
[347822534,1736134245004,-500.0,0.00022045,3]
[347822535,1736134245014,-500.0,0.00022045,3]
[347822536,1736134245024,-510.23810879,0.00022045,3]
[347822537,1736134245033,-500.0,0.00022045,3]
[347822538,1736134245043,-500.0,0.00022045,3]
[347822539,1736134245052,-500.0,0.00022045,3]
[347822540,1736134245061,-500.0,0.00022045,3]
[347822541,1736134245071,-1813.94,0.00022045,3]
[347822542,1736134245081,-500.0,0.00022046,3]
[347822543,1736134245090,-1285.71,0.00022046,3]
[347822544,1736134245099,-500.0,0.00022046,3]
[347822545,1736134245108,-500.0,0.00022046,3]
[347822546,1736134245118,-500.0,0.00022046,3]
[347822547,1736134245128,-500.0,0.00022046,3]
[347822548,1736134245138,-500.0,0.00022048,3]
[347822549,1736134245147,-500.0,0.00022048,3]
[347822550,1736134245156,-3718.86,0.00022048,3]
[347822551,1736134245165,-576.20595478,0.00022073,2]
[347822552,1736134245175,-500.0,0.00022095,3]
[347822553,1736134245184,-500.0,0.00022095,3]
[347822554,1736134245194,-500.0,0.00022095,3]
[347822555,1736134245203,-500.0,0.00022095,3]
[347822556,1736134245213,-251.038867,0.00022122,7]
[347822557,1736134245223,-251.038867,0.00022122,7]
[347822558,1736134245234,-154.73891222,0.00022122,2]
[347822559,1736134245243,-154.73891222,0.00022233,2]
[347822560,1736134245253,-426.0,0.0002227,7]
[347822561,1736134245263,-500.0,0.00022316,3]
[347822562,1736134245272,-500.0,0.00022316,3]
[347822563,1736134245282,-16919.55,0.00022316,2]
[347822564,1736134245291,-500.0,0.00022316,3]
[347822565,1736134245301,-500.0,0.00022317,3]
[347822566,1736134245311,-3785.05,0.00022317,3]
[347822567,1736134245321,-2057.21,0.00022317,3]
[347822568,1736134245331,-1095.51,0.00022317,3]
[347822569,1736134245341,-507.94,0.00022317,3]
[347822572,1736134245350,-500.0,0.00022317,3]
[347822573,1736134245360,-500.0,0.00022317,3]
[347822574,1736134245369,-500.0,0.00022317,3]
[347822575,1736134245379,-500.0,0.00022317,3]
[347822576,1736134245389,-1217.57,0.00022317,3]
[347822577,1736134245399,-500.0,0.00022317,3]
[347822578,1736134245408,-1341.59,0.00022317,3]
[347822579,1736134245418,-642.90688575,0.00022317,3]
[347822580,1736134245427,-500.0,0.00022317,3]
[347822581,1736134245438,-500.0,0.00022317,3]
[347822582,1736134245447,-534.58,0.00022317,3]
[347822583,1736134245457,-676.82,0.00022317,3]
[347822584,1736134245467,-500.0,0.00022317,3]
[347822585,1736134245476,-500.0,0.00022317,3]
[347822586,1736134245485,-500.0,0.00022317,3]
[347822587,1736134245495,-500.0,0.00022317,3]
[347822588,1736134245504,-188.54241667,0.00022318,3]
[347822589,1736134245513,-500.0,0.00022318,3]
[347822591,1736134245523,-500.0,0.00022318,3]
[347822592,1736134245532,-500.0,0.00022318,3]
[347822593,1736134245542,-500.0,0.00022318,3]
[347822594,1736134245552,-500.0,0.00022318,3]
[347822595,1736134245562,-500.0,0.00022318,3]
[347822596,1736134245571,-500.0,0.00022318,3]
[347822597,1736134245581,-500.0,0.00022318,3]
[347822598,1736134245590,-500.0,0.00022318,3]
[347822599,1736134245599,-486.4547865,0.00022318,3]
[347822600,1736134245609,-500.0,0.00022318,3]
[347822601,1736134245619,-379.70549924,0.00022318,3]
[347822603,1736134245628,-500.0,0.00022318,3]
[347822605,1736134245640,-500.0,0.00022318,3]
[347822606,1736134245650,-500.0,0.00022318,3]
[347822608,1736134245659,-581.13439033,0.00022318,3]
[347822610,1736134245668,-500.0,0.00022318,3]
[347822613,1736134245748,-500.0,0.00022318,3]
[347822615,1736134245758,-500.0,0.00022318,3]
[347822616,1736134245767,-480.4729326,0.00022318,3]
[347822618,1736134245776,-500.0,0.00022318,3]
[347822620,1736134245786,-518.23,0.00022318,3]
[347822622,1736134245795,-500.0,0.00022318,3]
[347822623,1736134245805,-500.0,0.00022318,3]
[347822624,1736134245815,-500.0,0.00022318,3]
[347822625,1736134245824,-500.0,0.00022318,3]
[347822626,1736134245833,-500.0,0.00022318,3]
[347822627,1736134245842,-500.0,0.00022318,3]
[347822628,1736134245852,-500.0,0.00022318,3]
[347822629,1736134245861,-500.0,0.00022318,3]
[347822630,1736134245871,-353.65714267,0.00022318,3]
[347822631,1736134245881,-16209.91,0.00022318,3]
[347822633,1736134245891,-500.0,0.00022318,3]
[347822635,1736134245900,-500.0,0.00022318,3]
[347822636,1736134245910,-500.0,0.00022318,3]
[347822637,1736134245919,-500.0,0.00022318,3]
[347822638,1736134245928,-500.0,0.00022318,3]
[347822639,1736134245940,-500.0,0.00022318,3]
[347822640,1736134245950,-500.0,0.00022319,3]
[347822641,1736134245960,-500.0,0.00022319,3]
[347822642,1736134245969,-500.0,0.00022319,3]
[347822643,1736134245979,-500.0,0.00022319,3]
[347822644,1736134245988,-500.0,0.00022319,3]
[347822645,1736134245998,-500.0,0.00022319,3]
[347822646,1736134246007,-208.54196184,0.00022319,3]
[347822647,1736134246016,-1813.94,0.00022319,3]
[347822649,1736134246026,-500.0,0.0002232,3]
[347822651,1736134246035,-1285.71,0.0002232,3]
[347822652,1736134246045,-500.0,0.0002232,3]
[347822653,1736134246054,-500.0,0.0002232,3]
[347822654,1736134246064,-500.0,0.0002232,3]
[347822655,1736134246074,-500.0,0.0002232,3]
[347822656,1736134246084,-500.0,0.00022322,3]
[347822657,1736134246093,-500.0,0.00022322,3]
[347822658,1736134246103,-3718.86,0.00022322,3]
[347822659,1736134246112,-500.0,0.00022338,2]
[347822660,1736134246121,-500.0,0.00022338,2]
[347822661,1736134246131,-154.73891222,0.00022344,2]
[347822662,1736134246140,-500.0,0.00022369,3]
[347822663,1736134246149,-500.0,0.00022369,3]
[347822664,1736134246159,-151.0,0.00022369,7]
[347822665,1736134246168,-500.0,0.00022369,3]
[347822666,1736134246177,-298.07491658,0.00022369,3]
[347822667,1736134246189,-151.0,0.00022425,7]
[347822668,1736134246198,-154.73891222,0.00022456,2]
[347822669,1736134246207,-151.0,0.00022565,7]
[347822670,1736134246217,-154.73891222,0.00022567,2]
[347822671,1736134246227,-500.0,0.0002259,3]
[347822672,1736134246237,-500.0,0.0002259,3]
[347822673,1736134246246,-16919.55,0.0002259,2]
[347822674,1736134246255,-500.0,0.0002259,3]
[347822675,1736134246265,-500.0,0.00022591,3]
[347822676,1736134246275,-3785.05,0.00022591,3]
[347822677,1736134246284,-2057.21,0.00022591,3]
[347822678,1736134246293,-1095.51,0.00022591,3]
[347822679,1736134246302,-507.94,0.00022591,3]
[347822680,1736134246311,-500.0,0.00022591,3]
[347822681,1736134246321,-500.0,0.00022591,3]
[347822682,1736134246330,-500.0,0.00022591,3]
[347822683,1736134246340,-500.0,0.00022591,3]
[347822684,1736134246349,-1217.57,0.00022591,3]
[347822685,1736134246359,-500.0,0.00022591,3]
[347822686,1736134246368,-1341.59,0.00022591,3]
[347822687,1736134246378,-500.0,0.00022591,3]
[347822688,1736134246388,-500.0,0.00022591,3]
[347822689,1736134246397,-534.58,0.00022591,3]
[347822690,1736134246406,-676.82,0.00022591,3]
[347822691,1736134246415,-500.0,0.00022591,3]
[347822692,1736134246424,-500.0,0.00022591,3]
[347822693,1736134246435,-500.0,0.00022591,3]
[347822694,1736134246444,-500.0,0.00022591,3]
[347822695,1736134246453,-500.0,0.00022592,3]